Cogmind - Beta 16 @@@ ROGUE MODE // 2025.12.13 @ 13:23:59 Player: JuustuToug Result: Destroyed by D-53 Grenadier with Mini Grenade Launcher Performance ------------- Evolutions (0) 0 Regions Visited (4) 800 Robots Destroyed (26) 130 Value Destroyed (536) 536 Prototype IDs (0) 0 Alien Tech Used (0) 0 Bonus (25) 25 TOTAL SCORE: 1491 Bonus ------- Follower Combat Kills 25 Cogmind --------- Core Integrity 0/250 Matter 195/300 Energy 88/100 System Corruption 0% Temperature Cool (0) Movement Core (50) Location -9/Mines Parts ------- > --- POWER (1) -------- (None) > --- PROPULSION (2) --- Light Treads > --- UTILITY (2) ------ (None) > --- WEAPON (2) ------- (None) > --- INVENTORY (5) ---- Large Storage Unit High-capacity Matter Pod (200) Structural Scanner Signal Interpreter Small Laser Peak State ------------ > --- POWER ------------ Light Nuclear Core > --- PROPULSION ------- Light Treads Light Treads > --- UTILITY ---------- Large Storage Unit Seismic Detector > --- WEAPON ----------- Assault Rifle Light Assault Rifle > --- INVENTORY -------- Light Ion Engine Light Ion Engine Improved Heat Sink Large Storage Unit Structural Scanner Signal Interpreter Seismic Detector Small Laser Light Assault Rifle Hammer [Rating: 10] Favorites ----------- Power Light Nuclear Core Engine Light Ion Engine Power Core Light Nuclear Core Propulsion Light Treads Treads Light Treads Utility Seismic Detector Device Seismic Detector Storage Large Storage Unit Weapon Light Assault Rifle Energy Gun Medium Laser Ballistic Gun Light Assault Rifle Launcher Grenade Launcher Impact Weapon Hammer Build | -11 -10 -10 -10 -9 ------- Run | Yrd Mat Min Exi Min Slots Evolved . | . . . . . Power . | . . . . . Propulsion . | . . . . . Utility . | . . . . . Weapon . | . . . . . Parts Attached 16 | 7 4 . . 5 Power 4 | 1 1 . . 2 Engine 3 | 1 . . . 2 Core 1 | . 1 . . . Reactor . | . . . . . Propulsion 3 | 2 . . . 1 Treads 3 | 2 . . . 1 Leg . | . . . . . Wheel . | . . . . . Hover . | . . . . . Flight . | . . . . . Utility 3 | 2 1 . . . Device 1 | 1 . . . . Storage 2 | 1 1 . . . Processor . | . . . . . Hackware . | . . . . . Protection . | . . . . . Artifact . | . . . . . Weapon 6 | 2 2 . . 2 Energy Gun 2 | 1 . . . 1 Energy Cannon . | . . . . . Ballistic Gun 2 | 1 1 . . . Ballistic Cannon . | . . . . . Launcher 1 | . . . . 1 Special Weapon . | . . . . . Impact Weapon 1 | . 1 . . . Slashing Weapon . | . . . . . Piercing Weapon . | . . . . . Special Melee Weapon . | . . . . . Unidentified Prototypes . | . . . . . Parts Lost 7 | . . . . 7 Power 2 | . . . . 2 Propulsion 2 | . . . . 2 Utility . | . . . . . Weapon 3 | . . . . 3 Highest Loss Streak 4 | . . . . 4 To Critical Strikes . | . . . . . Average Backups 10 | 1 9 14 14 12 Power 1 | . 1 2 2 1 Propulsion . | . . 1 1 . Utility 3 | . 3 5 5 5 Weapon 4 | . 3 6 6 4 Tool/Special . | . . . . . Unused Backups 12 | . 2 . . 10 Power . | . . . . . Propulsion 1 | . 1 . . . Utility 6 | . . . . 6 Weapon 5 | . 1 . . 4 Tool/Special . | . . . . . Average Slot Usage (%) 96 | . 99 100 100 76 Engine 2 | . 1 . . 6 Core 10 | . 12 14 14 . Treads 25 | . 27 28 28 14 Device 13 | . 13 14 14 13 Storage 13 | . 14 14 14 13 Energy Gun 3 | . 1 . . 12 Ballistic Gun 24 | . 25 28 28 13 Peak Build Rating 10 | 7 10 10 10 10 Average Rating 8 | 5 9 10 10 6 On Entrance 7 | . 7 10 10 10 Avg Prop Armor Cover (%) . | . . . . . Naked Turns . | . . . . . Heaviest Build 31 | 13 29 29 29 31 Greatest Support 40 | 40 40 40 40 20 Greatest Overweight (x) 1 | . . . . 1 Average Overweight (x) . | . . . . . Largest Inventory Capacity 15 | 8 15 15 15 15 Average Capacity 13 | 7 12 15 15 14 Most Carried 15 | 2 14 14 15 15 Average Carried 10 | 1 9 14 14 12 Final Capacity 15 | 8 15 15 15 5 Final Carried 15 | 2 14 14 15 5 Class Distribution -------------------- 93% | Mutant 6% | Scavenger-Mutant Dominant Class ---------------- Mutant | -10/Materials Mutant | -10/Mines Mutant | -10/Exiles Mutant | -9/Mines Resources | -11 -10 -10 -10 -9 ----------- Run | Yrd Mat Min Exi Min Matter Collected 706 | 168 467 8 . 63 Remotely . | . . . . . Salvage Created 897 | 22 713 . . 162 Parts 61 | 2 52 . . 7 Haulers Intercepted 2 | . 2 . . . Recyclers Shooed 2 | 1 1 . . . Parts Field Recycled . | . . . . . Retrieved Matter . | . . . . . Parts Self-Destructed . | . . . . . Prevented . | . . . . . Parts Restored . | . . . . . Kills | -11 -10 -10 -10 -9 ------- Run | Yrd Mat Min Exi Min Combat Hostiles Destroyed 31 | . 13 . . 18 Guns 16 | . 13 . . 3 AOE 15 | . . . . 15 Classes Destroyed 9 | 1 7 . . 1 Worker 1 | . 1 . . . Builder 2 | . 1 . . 1 Tunneler 1 | 1 . . . . Hauler 2 | . 2 . . . Operator 1 | . 1 . . . Watcher 3 | . 3 . . . Swarmer 3 | . 3 . . . Grunt 13 | . 10 . . 3 Assembled 17 | . . . . 17 Best Kill Streak 18 | 1 4 . . 18 Combat Bots Only 17 | . 4 . . 17 Max Kills in Single Turn 4 | 1 1 . . 4 Gunslinging . | . . . . . Exploded 4 | . . . . 4 Melee . | . . . . . Uniques/NPCs Destroyed . | . . . . . Combat | -11 -10 -10 -10 -9 -------- Run | Yrd Mat Min Exi Min Hostile Shots Fired 83 | . 51 . . 32 Missed 18 | . 13 . . 5 Hits 65 | . 38 . . 27 Melee 3 | . . . . 3 Projectile 62 | . 38 . . 24 AOE 3 | . . . . 3 Critical Strikes 2 | . 1 . . 1 Damage Taken 930 | . 407 . . 523 Core 263 | . 97 . . 166 Absorbed by Shields . | . . . . . Core Remaining (%) 100 | 100 . . . . Volleys Fired 82 | 5 57 . . 20 Largest 2 | 2 2 . . 2 Hottest 70 | 60 60 . . 70 Shots Fired 153 | 10 114 . . 29 Gun 142 | 10 114 . . 18 Cannon . | . . . . . Launcher 11 | . . . . 11 Special . | . . . . . Kinetic 119 | 5 104 . . 10 Thermal 8 | . . . . 8 Explosive 11 | . . . . 11 Electromagnetic 15 | 5 10 . . . Robot Hit Streak 8 | 4 8 . . 8 Robot Miss Streak 5 | 1 5 . . 4 Penetration Max . | . . . . . Secondary Targets 2 | . 1 . . 1 Max Gunslinging Chain 1 | . 1 . . 1 Shots Hit Robots 80 | 6 62 . . 12 Core Hits 88 | 2 35 . . 51 Critical Kills . | . . . . . Critical Parts Destroyed . | . . . . . Critical Strikes . | . . . . . Melee Attacks 3 | . 3 . . . Impact 3 | . 3 . . . Slashing . | . . . . . Piercing . | . . . . . Sneak Attacks 1 | . 1 . . . Combat Hostiles . | . . . . . Follow-up Attacks . | . . . . . Damage Inflicted 1874 | 77 730 . . 1067 Guns 891 | 77 698 . . 116 Cannons . | . . . . . Explosions 951 | . . . . 951 Melee 32 | . 32 . . . Ramming . | . . . . . Kinetic 735 | 49 634 . . 52 Thermal 64 | . . . . 64 Explosive 951 | . . . . 951 Electromagnetic 92 | 28 64 . . . Impact 32 | . 32 . . . Slashing . | . . . . . Piercing . | . . . . . Highest Corruption . | . . . . . Average Corruption . | . . . . . Corruption Purged . | . . . . . Corruption Blocked . | . . . . . Overload Shots . | . . . . . Overflow Damage 29 | . 22 . . 7 Projectiles . | . . . . . Explosions 7 | . . . . 7 Melee 22 | . 22 . . . Knockbacks . | . . . . . Impact . | . . . . . Kinetic . | . . . . . Secondary . | . . . . . Self-Inflicted Damage 41 | . . . . 41 Shots 2 | . . . . 2 Rammed . | . . . . . Targets Rammed . | . . . . . Kicked . | . . . . . Crushed . | . . . . . Highest Temperature 44 | . 44 . . 40 Average Temperature 9 | . 7 . . 18 Received Heat Transfer 239 | . 207 . . 32 Siege Activations . | . . . . . Martial Activations . | . . . . . Shielding Activations . | . . . . . Robots Disrupted . | . . . . . Combat Hostiles . | . . . . . Robots Corrupted 1 | . 1 . . . Combat Hostiles . | . . . . . Parts Fried 3 | . 3 . . . Impact Corruptions 1 | . 1 . . . Robots Melted . | . . . . . Combat Hostiles . | . . . . . Parts Melted 1 | . . . . 1 Heat Transferred 185 | . . . . 185 Parts Sabotaged . | . . . . . Parts Stolen . | . . . . . Parts Stripped . | . . . . . Power Chain Reactions . | . . . . . Alert | -11 -10 -10 -10 -9 ------- Run | Yrd Mat Min Exi Min Maximum Alert Level . | . . . . . Low Security (%) 100 | 100 100 100 . 100 Level 1 . | . . . . . Level 2 . | . . . . . Level 3 . | . . . . . Level 4 . | . . . . . Level 5 . | . . . . . High Security . | . . . . . Max Security . | . . . . . Peak Influence 124 | 5 124 19 . 46 Initial 19 | . . 19 . . Average 37 | . 50 3 . 7 Influence Increases 536 | 5 446 . . 85 Destroy 0b10 Robot/C 300 | . 260 . . 40 Destroy 0b10 Robot/NC 50 | 5 40 . . 5 Destroy Leader 50 | . 50 . . . Allied During Kill 6 | . . . . 6 Successful Hack 35 | . 35 . . . Disable Machine 30 | . 30 . . . Destroy Structure 35 | . 1 . . 34 Lose Combat Pursuer 30 | . 30 . . . Influence Decreases 536 | 5 395 51 . 85 Entered New Map 32 | . . 32 . . Time Decay 473 | 5 395 19 . 54 Lost Part 11 | . . . . 11 Lost Ally 20 | . . . . 20 Squads Dispatched 1 | . 1 . . . Investigation 1 | . 1 . . . Extermination . | . . . . . Reinforcement . | . . . . . Assault . | . . . . . Garrison . | . . . . . Intercept . | . . . . . Searches Triggered . | . . . . . Construction Impeded . | . . . . . Haulers Reinforced . | . . . . . Active Scanning Responses . | . . . . . Cargo Convoy Interrupts . | . . . . . Stealth | -11 -10 -10 -10 -9 --------- Run | Yrd Mat Min Exi Min Distress Signals . | . . . . . Communications Jammed . | . . . . . Distress Signals . | . . . . . Times Spotted 50 | . 25 . . 25 Peak Tracking Total 17 | . 5 . . 17 Tactical Retreats 2 | . 2 . . . Traps | -11 -10 -10 -10 -9 ------- Run | Yrd Mat Min Exi Min Traps Triggered 4 | . 4 . . . Indirectly . | . . . . . Trap Hack Attempts . | . . . . . Triggered . | . . . . . Disarmed . | . . . . . Reprogrammed . | . . . . . Reused . | . . . . . Traps Extracted . | . . . . . Installed . | . . . . . Triggered . | . . . . . Machines | -11 -10 -10 -10 -9 ---------- Run | Yrd Mat Min Exi Min Machines Disabled 2 | . 2 . . . Max in Single Turn 1 | . 1 . . . Machines Repaired . | . . . . . Machines Dismantled . | . . . . . Machines Sabotaged . | . . . . . Overloaded Fab Kills . | . . . . . Hacking | -11 -10 -10 -10 -9 --------- Run | Yrd Mat Min Exi Min Machines Accessed 10 | . 9 . 1 . Terminals 7 | . 7 . . . Fabricators . | . . . . . Repair Stations . | . . . . . Recycling Units 2 | . 2 . . . Scanalyzers . | . . . . . Garrison Access . | . . . . . Total Hacks 31 | . 30 . 1 . Successful 18 | . 17 . 1 . Failed 13 | . 13 . . . Catastrophic 1 | . 1 . . . Database Lockouts . | . . . . . Manual 28 | . 28 . . . Terminals 26 | . 26 . . . Fabricators . | . . . . . Repair Stations . | . . . . . Recycling Units 4 | . 4 . . . Scanalyzers . | . . . . . Garrison Access . | . . . . . Terminal Hacks 3 | . 2 . 1 . Record 1 | . . . 1 . Part Schematic 1 | . 1 . . . Terminal Index 1 | . 1 . . . Fabricator Hacks . | . . . . . Repair Station Hacks . | . . . . . Recycling Unit Hacks 2 | . 2 . . . Retrieve Components 2 | . 2 . . . Scanalyzer . | . . . . . Garrison Access Hacks . | . . . . . Unauthorized Hacks 13 | . 13 . . . Terminals 11 | . 11 . . . Botnet 5 | . 5 . . . Skim 6 | . 6 . . . Fabricators . | . . . . . Repair Stations . | . . . . . Recycling Units 2 | . 2 . . . Reject 2 | . 2 . . . Scanalyzers . | . . . . . Garrison Access . | . . . . . Data Cores Recovered . | . . . . . Used . | . . . . . Hacking Detections 8 | . 8 . . . Full Trace Events . | . . . . . Feedback Events . | . . . . . Feedback Blocked . | . . . . . Robot Schematics Acquired . | . . . . . Robots Built . | . . . . . Authchips . | . . . . . Time . | . . . . . Total Robot Build Rating . | . . . . . Part Schematics Acquired 1 | . 1 . . . Parts Built . | . . . . . Authchips . | . . . . . Time . | . . . . . Total Part Build Rating . | . . . . . Part Studies Acquired . | . . . . . Parts Repaired . | . . . . . Time . | . . . . . Parts Recycled . | . . . . . Recycled Matter . | . . . . . Retrieved Matter . | . . . . . Retrieved Components 10 | . 10 . . . Parts Scanalyzed . | . . . . . Part Schematics Acquired . | . . . . . Parts Damaged . | . . . . . Bothacking | -11 -10 -10 -10 -9 ------------ Run | Yrd Mat Min Exi Min Used RIF Installer . | . . . . . Robots Hacked . | . . . . . Non-combat . | . . . . . Combat . | . . . . . Robot Hacks Applied . | . . . . . Relay Couplers Released . | . . . . . Fabnet Peak Effective % . | . . . . . Robots Rewired . | . . . . . Allies Hacked . | . . . . . Hacks Repelled . | . . . . . Allies | -11 -10 -10 -10 -9 -------- Run | Yrd Mat Min Exi Min Total Allies 3 | . . 3 . . Largest Group 3 | . . 3 3 3 Highest-Rated Group 40 | . . 40 40 40 Highest-Rated Ally 16 | . . 16 16 16 Total Orders . | . . . . . Ally Attacks 24 | . . . . 24 Total Damage 250 | . . . . 250 Kills 3 | . . . . 3 Allies Corrupted . | . . . . . Allies Melted . | . . . . . Intel | -11 -10 -10 -10 -9 ------- Run | Yrd Mat Min Exi Min Active Infowar (turns) 2101 | 16 1323 146 304 312 Seismic 2101 | 16 1323 146 304 312 Robot Analysis Total . | . . . . . Derelict Logs Recovered 2 | . . 1 . 1 Drone Launches . | . . . . . Drone Recoveries . | . . . . . Exploration | -11 -10 -10 -10 -9 ------------- Run | Yrd Mat Min Exi Min Turns Passed 2200 | 98 1338 146 304 314 Spaces Moved 994 | 47 560 89 190 108 Core 6 | 4 . . . 2 Treads 988 | 43 560 89 190 106 Legs . | . . . . . Wheels . | . . . . . Hover . | . . . . . Flight . | . . . . . Fastest Speed 50 | 50 160 160 160 50 Average Speed 167 | 150 160 160 160 236 Slowest Speed 240 | 160 160 160 160 240 Overloaded Moves . | . . . . . Propulsion Burnouts . | . . . . . Robots Hopped . | . . . . . Potential Cave-ins . | . . . . . Cave-ins Triggered . | . . . . . Exploration Rate (%) 36 | 4 79 18 54 28 Regions Visited 4 Branch Regions 3 Pre-discovered Areas 3 | . 1 1 1 . Known Exits Taken 1 | . . . 1 . Unknown Exits Taken 3 | 1 1 1 . . Scrap Searched . | . . . . . Spaces Dug 6 | . . . . 6 Terrain Destroyed 65 | . . . . 65 Melee . | . . . . . Projectile . | . . . . . AOE 65 | . . . . 65 Terrain Rammed . | . . . . . Walls Destroyed . | . . . . . Machines Disabled . | . . . . . Actions | -11 -10 -10 -10 -9 --------- Run | Yrd Mat Min Exi Min Total 1370 | 61 888 93 190 138 Wait 243 | 1 237 5 . . Move 990 | 46 559 88 189 108 Hop . | . . . . . Pick Up 19 | 2 14 . 1 2 Fast Attach 15 | 7 7 . . 1 Attach 4 | . . . . 4 Detach . | . . . . . Swap 9 | . 7 . . 2 Drop 5 | . 4 . . 1 Fire 82 | 5 57 . . 20 Melee 3 | . 3 . . . Ram . | . . . . . Kick . | . . . . . Crush . | . . . . . Escape Stasis . | . . . . . Rewire . | . . . . . Trap . | . . . . . Miscellaneous . | . . . . . Route ------- -11/Scrapyard -10/Materials (discovered 6 exits: *Mat x3 / [*Min x2] / Sub) -10/Mines (discovered 2 exits: *Mat / *Exi) -10/Exiles (discovered 2 exits: *Min x2) -9/Mines History --------- Turn | Location | Event 2 | -11/Scrapyard | Met Revision 17 30 | -11/Scrapyard | Discovered new exit (range 14) 99 | -11/Scrapyard | Entered Materials 321 | -10/Materials | Build established: Mutant 503 | -10/Materials | Discovered new exit (range 5) 516 | -10/Materials | Discovered new exit (range 16) 721 | -10/Materials | Discovered new exit (range 8) 904 | -10/Materials | Discovered new exit (range 13) 997 | -10/Materials | Identified exit to Materials 1074 | -10/Materials | Learned Storage security intel 1139 | -10/Materials | Learned location of Subcaves (-10) 1194 | -10/Materials | Learned location of 1 exit from Storage 1241 | -10/Materials | Learned 4 Recycling zone layouts 1277 | -10/Materials | Identified exit to Subcaves 1277 | -10/Materials | Learned location of 1 exit from Materials 1323 | -10/Materials | Learned location of 3 exits from Materials 1381 | -10/Materials | Learned Storage trap positions 1437 | -10/Materials | Entered Mines 1438 | -10/Mines | Learned location of Storage (-7) 1484 | -10/Mines | Assisted by bots powering up and referring to "LRC-V3" 1574 | -10/Mines | Deemed a non-threat by the Exiles lab entrance 1574 | -10/Mines | Discovered new exit (range 5) 1583 | -10/Mines | Entered Exiles 1583 | -10/Exiles | Accompanied by 3 allies 1584 | -10/Exiles | Identified exit to Mines 1625 | -10/Exiles | Met 8R-AWN 1652 | -10/Exiles | Met EX-HEX 1727 | -10/Exiles | Met EX-DEC 1756 | -10/Exiles | Learned location of Zion (-6) 1887 | -10/Exiles | Entered Mines 1887 | -9/Mines | Accompanied by 3 allies 1891 | -9/Mines | Core integrity fell below 50% 1923 | -9/Mines | Lost 4 parts (1p2n1w) 1929 | -9/Mines | Learned 4 Materials zone layouts 2012 | -9/Mines | Assembled infested the area 2058 | -9/Mines | Core integrity fell below 20% 2074 | -9/Mines | Lost 3 allies 2085 | -9/Mines | Destroyed 17 combat bots 2199 | -9/Mines | Released all parts (4) 2201 | -9/Mines | Destroyed by D-53 Grenadier with Mini Grenade Launcher Last Messages --------------- 02142_ R-06 Scavenger collects Structural Scanner. 02143_ U-05 Engineer lays Concrete. 02146_ R-06 Scavenger collects Terrain Scan Processor. 02147_ U-05 Engineer lays Concrete. 02149_ R-06 Scavenger collects Terrain Scanner. 02150_ U-05 Engineer builds a Wall. 02158_ The unstable cave ceiling collapses. 02158_ U-05 Engineer lays Concrete. 02159_ U-05 Engineer builds a Wall. 02199_ C-45 Heavy ARC bursts open, deploying its payload. 02199_ D-53 Grenadier unfolds itself. 02199_ Lgt. Assault Rifle destroyed. 02199_ Released Med. Laser. 02199_ Released Lgt. Treads. 02199_ Released Seismic Detector. 02199_ Released Lrg. Storage Unit. 02199_ Acquired Lgt. Treads. Map ----- +----------------------------------------------------+ | ????????????????????????? ???# #????? | | ?????????????????????????# ??### #????? | | ????????????????????? ??## ????# #????? | | ????????????????????? ## #???# #????? | | ???????????????????? #### ###??? | | ???????????????????? # ##?? | | ????????????????????# #?? | | ?????????????????????# #?? | | ?????????????????????# ##?? | | ?????????????????????# #??? | | ?????????????????????## #??? | | ??????????????????????## ### ##??? | | ???????????????????????##???## ##???? | | ?????????????????????????????# #????? | | ????????????????????????# #### ###??? | | ????????????????????????# ##?? | | ????????????????? ### #?? | | ?????????????????? ??????# #?? | | ????????????????????????????## #?? | | ?????????????????????????????## ##?? | | ??????????????????????????????## #??? | | ???????????????????#########???## ##?? | | ??????????????????## #????#### ##? | | ??????????????????# ##????### #? | | ??????????????????## * ###### #? | | ???????????????????## / @ ### #? | | ????????????????????# !!* d ##? | | ????????????????????# [ ##?? | | ????????????????????## #??? | | ?????????????????????### d% ##?? | | ???????????????????????## """" ##? | | ????????????????????????### """" #? | | ??????????????????????????## r """" #? | | ???????????????????????????## #? | | ????????????????????????????## ## ##? | | ?????????????????????????????# #### #?? | | ?????????????????????????????# #### #?? | | ????????????????????????????## ## #?? | | ???????????????????????????## [ #?? | | ???????????????????????????# ! #?? | | ???????????????????????????# # #?? | | ???????????????????????????## # #?? | | ????????????????????????????### ##? | | ?????????????????????????????## #? | | ?????????????????????????????# # = # ##? | | ?????????????????????????????# #### ###? | | ?????????????????????????????# ## #? | | ?????????????????????????????## # ##? | | ?????????????????????????????## #?? | | ???????????????????????????### #?? | +----------------------------------------------------+ Best States ------------- Heat Dissipation 25 Energy Generation 14 Energy Capacity 265 Matter Stores 300 Matter Capacity 300 Sight Range 16 Terrain Scan Density 10 Evasion (%) 50 Recoil Reduction 2 Item Schematics ----------------- Hcp. Storage Unit | -10/Materials | Hacked Robot Schematics ------------------ None Fabricated ------------ Nothing Repaired ---------- Nothing Studied --------- None Alien Tech Used ----------------- None Achievements -------------- None Challenges ------------ None Game ------ Seed TachyonMeleeCompanion Manual? 0 Play Time 00:12:50 Cumulative 237.9 hours Start 2025.12.13 @ 13:08:55 End 2025.12.13 @ 13:23:59 Sessions 1 Manual Loads 0 Difficulty Rogue Special Mode None Game No. 160 Rogue 160 Adventurer 0 Explorer 0 Win Type - Total 7 Types 5/0/1/1/0/0/0/0/0/0 Lore% 86 Gallery% 77 Achievement% 61 Wizard Run 0 Options --------- Layout 1 ASCII 0 Keyboard 0 Movement Mouse Keybinds 0 Fullscreen 2 Font 24/Smallcaps Map View 50x35 Zoom Use 0% Tactical HUD 1 Map Filters NONE Filters NONE Steam 1 RUN: f2fd4a78-abb4-47c6-904e-aedb4dff8c31